{"text_format":"1","workbook":"xlsx","n_sheets":2,"sheets":["Träningsplanering","Vecka 1"],"not_rendered":{"charts":0,"images":0,"macros":1,"external_links":1,"defined_names":21,"comments":0,"pivot_tables":0},"unopened":[],"bounds":{"document_bytes":16777216,"sheet_cells":100000,"rows_first":2000,"rows_last":500,"rows_between":2000,"halvings":0,"cell_chars":16384,"cell_head_chars":4096},"cells_cut":0,"cells_raw":0,"read":"whole","date_system":"1900"}

{"sheet":"Träningsplanering","index":0,"n_rows":27,"n_cols":17,"rows_kept":27,"cut":false,"hidden":false,"merged":[[24,4,24,9],[24,11,24,16],[21,4,21,9],[22,4,22,9],[23,4,23,9],[21,11,21,16],[22,11,22,16],[23,11,23,16],[9,11,9,16],[10,11,10,16],[11,11,11,16],[12,11,12,16],[20,4,20,9],[20,11,20,16],[13,4,13,9],[13,11,13,16],[9,4,9,9],[10,4,10,9],[11,4,11,9],[12,4,12,9]]}
[]
[null,"TRÄNINGSPLANERING"]
[]
[null,"STARTDATUM",null,null,"UPPVÄRMNING",null,null,null,null,null,null,"STYRKA"]
[null,"2011-08-01",null,null,"ÖVNINGAR","REPETITIONER","VIKT","VECKOR","FREKVENS","START",null,"ÖVNINGAR","REPETITIONER","VIKT","VECKOR","FREKVENS","START"]
[null,"ÅLDER",null,null,"Uppvärmning 1",10,30,4,"Dagligen","2011-08-01",null,"Styrketräning 1",7,100,4,"Dagligen","2011-08-01"]
[null,46,null,null,"Uppvärmning 2",10,40,4,"Dagligen","2011-08-01",null,"Styrketräning 2",7,125,4,"Dagligen","2011-08-01"]
[null,"KÖN",null,null,"Uppvärmning 3",10,20,4,"Dagligen","2011-08-01",null,"Styrketräning 3",7,75,4,"Dagligen","2011-08-01"]
[null,"M",null,null,"Uppvärmning 4",10,50,4,"Dagligen","2011-08-01",null,"Styrketräning 4",7,85,4,"Dagligen","2011-08-01"]
[null,"LÄNGD (M)",null,null,"Obs!"]
[null,6]
[null,"LÄNGD (CM)"]
[null,0]
[null,"VIKT (KG)"]
[null,244,null,null,"PULS",null,null,null,null,null,null,"NEDVARVNING"]
[null,"BRÖST (CM)",null,null,"ÖVNINGAR","REPETITIONER","VIKT","VECKOR","FREKVENS","START",null,"ÖVNINGAR","REPETITIONER","VIKT","VECKOR","FREKVENS","START"]
[null,48,null,null,"Pulsträning 1",30,50,4,"Dagligen","2011-08-01",null,"Nedvarvning 1",10,30,4,"Dagligen","2011-08-01"]
[null,"MIDJA (CM)",null,null,"Pulsträning 2",30,60,4,"Dagligen","2011-08-01",null,"Nedvarvning 2",10,40,4,"Dagligen","2011-08-01"]
[null,44,null,null,"Pulsträning 3",30,40,4,"Dagligen","2011-08-01",null,"Nedvarvning 3",10,20,4,"Dagligen","2011-08-01"]
[null,"KROPPSFETT (MÅL)",null,null,"Pulsträning 4",30,30,4,"Dagligen","2011-08-01",null,"Nedvarvning 4",10,50,4,"Dagligen","2011-08-01"]
[null,9]
[null,"KROPPSFETT"]
[null,11]
[null,"BMI (MÅL)"]
[null,22]
[null,"BMI"]
[null,{"$f":"IF(B15,(B15/(PlaneringLängdMeter*12+PlaneringLängdCm)/(PlaneringLängdMeter*12+PlaneringLängdCm)*BMI_Faktor),0)","v":33.092010493827161}]

{"sheet":"Vecka 1","index":1,"n_rows":30,"n_cols":17,"rows_kept":30,"cut":false,"hidden":false,"merged":[[9,4,9,16],[16,4,16,16],[23,4,23,16],[30,4,30,16]]}
[]
[null,"TRÄNINGSPLANERING"]
[null,null,null,null,null,null,null,null,null,null,null,null,null,null,null,null,"Obs! Skapa en kopia av det här bladet för varje vecka."]
[null,"VECKAN STARTAR PÅ",null,null,"UPPVÄRMNING","PLANERING",null,{"$f":"Startdatum","v":"2011-08-01"},null,{"$f":"H4+1","v":"2011-08-02"},null,{"$f":"J4+1","v":"2011-08-03"},null,{"$f":"L4+1","v":"2011-08-04"},null,{"$f":"N4+1","v":"2011-08-05"}]
[null,"2011-08-01",null,null,"ÖVNINGAR","REPETITIONER","VIKT","REPETITIONER","VIKT","REPETITIONER","VIKT","REPETITIONER","VIKT","REPETITIONER","VIKT","REPETITIONER","VIKT"]
[null,"NUVARANDE VIKT (KG)",null,null,{"$f":"Träningsplanering!E6","v":"Uppvärmning 1"},{"$f":"Träningsplanering!F6","v":10},{"$f":"Träningsplanering!G6","v":30},10,30,10,30,10,30,10,30,10,30]
[null,241,null,null,{"$f":"Träningsplanering!E7","v":"Uppvärmning 2"},{"$f":"Träningsplanering!F7","v":10},{"$f":"Träningsplanering!G7","v":40},10,40,10,40,10,40,10,40,10,40]
[null,"NUVARANDE BRÖSTMÅTT (CM)",null,null,{"$f":"Träningsplanering!E8","v":"Uppvärmning 3"},{"$f":"Träningsplanering!F8","v":10},{"$f":"Träningsplanering!G8","v":20},10,20,10,20,10,20,10,20,10,20]
[null,48,null,null,{"$f":"Träningsplanering!E9","v":"Uppvärmning 4"},{"$f":"Träningsplanering!F9","v":10},{"$f":"Träningsplanering!G9","v":50},10,50,10,50,10,50,10,50,10,50]
[null,"NUVARANDE MIDJEMÅTT (CM)"]
[null,44,null,null,"STYRKA","PLANERING",null,{"$f":"Startdatum","v":"2011-08-01"},null,{"$f":"H11+1","v":"2011-08-02"},null,{"$f":"J11+1","v":"2011-08-03"},null,{"$f":"L11+1","v":"2011-08-04"},null,{"$f":"N11+1","v":"2011-08-05"}]
[null,"NUVARANDE KROPPSFETT",null,null,"ÖVNINGAR","REPETITIONER","VIKT","REPETITIONER","VIKT","REPETITIONER","VIKT","REPETITIONER","VIKT","REPETITIONER","VIKT","REPETITIONER","VIKT"]
[null,10.8,null,null,{"$f":"Träningsplanering!L6","v":"Styrketräning 1"},{"$f":"Träningsplanering!M6","v":7},{"$f":"Träningsplanering!N6","v":100},5,100,6,90,7,100,7,100,7,100]
[null,"KROPPSFETT (MÅL)",null,null,{"$f":"Träningsplanering!L7","v":"Styrketräning 2"},{"$f":"Träningsplanering!M7","v":7},{"$f":"Träningsplanering!N7","v":125},5,125,6,125,5,125,7,125,7,125]
[null,9,null,null,{"$f":"Träningsplanering!L8","v":"Styrketräning 3"},{"$f":"Träningsplanering!M8","v":7},{"$f":"Träningsplanering!N8","v":75},7,75,7,75,7,75,7,75,7,75]
[null,"NUVARANDE BMI",null,null,{"$f":"Träningsplanering!L9","v":"Styrketräning 4"},{"$f":"Träningsplanering!M9","v":7},{"$f":"Träningsplanering!N9","v":85},6,85,7,85,7,85,7,85,7,85]
[null,{"$f":"IFERROR(IF(B7,(B7/([1]!PlanHeightFeet*12+[1]!PlanHeightInches)/([1]!PlanHeightFeet*12+[1]!PlanHeightInches)*BMI_Faktor),0),0)","v":0}]
[null,"BMI (MÅL)",null,null,"PULS","PLANERING",null,{"$f":"Startdatum","v":"2011-08-01"},null,{"$f":"H18+1","v":"2011-08-02"},null,{"$f":"J18+1","v":"2011-08-03"},null,{"$f":"L18+1","v":"2011-08-04"},null,{"$f":"N18+1","v":"2011-08-05"}]
[null,{"$f":"Träningsplanering!B25","v":22},null,null,"ÖVNINGAR","REPETITIONER","VIKT","REPETITIONER","VIKT","REPETITIONER","VIKT","REPETITIONER","VIKT","REPETITIONER","VIKT","REPETITIONER","VIKT"]
[null,null,null,null,{"$f":"Träningsplanering!E17","v":"Pulsträning 1"},{"$f":"Träningsplanering!F17","v":30},{"$f":"Träningsplanering!G17","v":50},30,50,30,50,30,50,30,50,30,50]
[null,null,null,null,{"$f":"Träningsplanering!E18","v":"Pulsträning 2"},{"$f":"Träningsplanering!F18","v":30},{"$f":"Träningsplanering!G18","v":60},25,60,26,60,29,60,30,60,30,60]
[null,null,null,null,{"$f":"Träningsplanering!E19","v":"Pulsträning 3"},{"$f":"Träningsplanering!F19","v":30},{"$f":"Träningsplanering!G19","v":40},26,40,27,40,30,40,30,40,28,40]
[null,null,null,null,{"$f":"Träningsplanering!E20","v":"Pulsträning 4"},{"$f":"Träningsplanering!F20","v":30},{"$f":"Träningsplanering!G20","v":30},30,30,30,30,30,30,30,30,30,30]
[]
[null,null,null,null,"NEDVARVNING","PLANERING",null,{"$f":"Startdatum","v":"2011-08-01"},null,{"$f":"H25+1","v":"2011-08-02"},null,{"$f":"J25+1","v":"2011-08-03"},null,{"$f":"L25+1","v":"2011-08-04"},null,{"$f":"N25+1","v":"2011-08-05"}]
[null,null,null,null,"ÖVNINGAR","REPETITIONER","VIKT","REPETITIONER","VIKT","REPETITIONER","VIKT","REPETITIONER","VIKT","REPETITIONER","VIKT","REPETITIONER","VIKT"]
[null,null,null,null,{"$f":"Träningsplanering!L17","v":"Nedvarvning 1"},{"$f":"Träningsplanering!M17","v":10},{"$f":"Träningsplanering!N17","v":30},10,30,10,30,10,30,10,30,10,30]
[null,null,null,null,{"$f":"Träningsplanering!L18","v":"Nedvarvning 2"},{"$f":"Träningsplanering!M18","v":10},{"$f":"Träningsplanering!N18","v":40},10,40,10,40,10,40,10,40,10,40]
[null,null,null,null,{"$f":"Träningsplanering!L19","v":"Nedvarvning 3"},{"$f":"Träningsplanering!M19","v":10},{"$f":"Träningsplanering!N19","v":20},10,20,10,20,10,20,10,20,10,20]
[null,null,null,null,{"$f":"Träningsplanering!L20","v":"Nedvarvning 4"},{"$f":"Träningsplanering!M20","v":10},{"$f":"Träningsplanering!N20","v":50},10,50,10,50,10,50,10,50,10,50]